[Event "1st Bella Italia International 2022"]
[Site "Lignano"]
[Date "2022.08.18"]
[Round "2.10"]
[White "Bartolozzi, Roberto"]
[Black "Aaron, Deepak"]
[Result "0-1"]
[ECO "A46"]
[WhiteElo "1967"]
[BlackElo "2221"]
[Annotator "TA"]
[PlyCount "68"]
[EventDate "2022.08.18"]
[EventCountry "ITA"]
[SourceTitle "playchess.com"]
[Source "ChessBase"]
[SourceQuality "1"]
[TimeControl "5400+30"]

{[%evp 10,68,12,0,8,-40,-6,0,0,-5,-11,-14,29,25,31,-3,36,43,46,12,20,7,18,-26,-10,-33,0,-43,-21,-196,-189,-176,0,-195,-170,-252,-191,-187,-192,-333,-329,-317,-315,-413,-413,-413,-404,-410,-406,-529,-500,-484,-469,-464,-464,-453,-456,-519,-506,-462,-475]} 1. d4 {[%emt 0:00:03]} e6 {[%emt 0:07:44]} 2. Nf3 {[%emt 0:00:44]} Nf6 {[%emt 0:00:40]} 3. Bg5 {[%emt 0:00:10]} h6 {[%emt 0:00:15]} 4. Bxf6 {[%emt 0:00:10]} Qxf6 {[%emt 0:00:07]} 5. e4 {[%emt 0:00:11]} d6 {[%emt 0:00:19]} 6. Bd3 {[%emt 0:01:23]} g5 {[%emt 0:07:29] A46: 1 d4 Nf6 2 Nf3 e6: Torre, London and Colle Systems.} 7. e5 {[%emt 0:10:45]} (7. c3 $11) 7... Qe7 {[%emt 0:00:40] [#]} 8. exd6 $146 {[%emt 0:13:14]} ({Predecessor:} 8. O-O Bg7 9. Nc3 Nc6 10. exd6 cxd6 11. d5 Ne5 12. dxe6 fxe6 13. Nxe5 Bxe5 14. Qh5+ {½-½ (36) Jackson,A (2223)-Bourne,J (2105) Port Erin 1999}) 8... cxd6 {[%emt 0:02:49] The position is equal.} 9. Nc3 {[%emt 0:03:45]} Bg7 {[%emt 0:00:51]} 10. O-O {[%emt 0:02:12]} g4 {[%emt 0:04:14]} 11. Nd2 {[%emt 0:02:35]} h5 {[%emt 0:01:22]} 12. Re1 {[%emt 0:14:02]} Kf8 {[%emt 0:01:31]} 13. d5 $1 {[%emt 0:08:23]} e5 {[%emt 0:02:54]} 14. Nc4 {[%emt 0:01:23]} f5 {[%emt 0:07:11]} 15. Nb5 {[%emt 0:01:09]} Rh6 {[%emt 0:00:10]} 16. Qd2 {[%emt 0:08:36]} (16. c3 $5 {[%cal Rd1c2]}) 16... Na6 {[%emt 0:03:02]} 17. Nd4 {[%emt 0:07:40]} e4 {[%emt 0:22:25]} 18. Qf4 {[%emt 0:01:36][%cal Re1e4]} Qf6 {[%emt 0:05:00]} 19. Bxe4 $2 {[%emt 0:07:53]} fxe4 $19 {[%emt 0:04:28]} (19... Qxd4 20. Nxd6 Qf6 21. Nxf5 $17) 20. Qxe4 {[%emt 0:00:53][%csl Ge1][%cal Re4e8] [#]} Nc7 {[%emt 0:02:40] Prevents Qe8+.} ({Black should try} 20... Kg8 $1 $19 21. Qe8+ Qf8 22. Qxf8+ Kxf8) 21. Rad1 {[%emt 0:02:36]} (21. Nxd6 $1 $11 Bd7 22. N6f5) 21... Qf7 {[%emt 0:03:06]} 22. f3 {[%emt 0:03:44]} (22. b3 $142) 22... Bd7 {[%emt 0:02:02]} (22... Nxd5 23. Rf1 $17) 23. fxg4 {[%emt 0:01:08] Rf1 is the strong threat.} Re8 {[%emt 0:00:34] The board is on fire.} (23... Nxd5 $2 24. Rf1 Nf6 25. Qxb7 Qxc4 26. Qxa8+ Qc8 27. Qxc8+ Bxc8 28. g5 $18) 24. Qd3 {[%emt 0:00:23] [#]} (24. Ne6+ $142 Nxe6 25. Nxd6) 24... Rxe1+ $1 {[%emt 0:01:40]} ({Not} 24... Nxd5 25. Rxe8+ Qxe8 26. Nf5 $15) ({Weaker is} 24... hxg4 25. Rf1 Bf6 26. Qg3 (26. Nxd6 Qh5 $11) 26... Qxd5 27. Nxd6 $11 (27. Qxd6+ Qxd6 28. Nxd6 Re5 $17)) (24... Qxd5 25. Rxe8+ Nxe8 26. Ne3 Bxd4 27. Qxd4 Qxd4 28. Rxd4 $17) 25. Rxe1 {[%emt 0:00:02] Hoping for g5.} hxg4 {[%emt 0:00:31] Threatens to win with ...Qh5.} ({Don't blunder} 25... Qxd5 $2 26. Rf1+ Rf6 27. Nf5 $19) 26. Ne6+ {[%emt 0:02:44]} Nxe6 {[%emt 0:03:52]} 27. dxe6 {[%emt 0:00:09]} Rxe6 {[%emt 0:01:27]} 28. Rf1 {[%emt 0:01:01]} Rf6 {[%emt 0:02:03]} 29. Qxd6+ {[%emt 0:01:27]} Rxd6 {[%emt 0:00:45] Black is clearly winning.} 30. Rxf7+ {[%emt 0:00:06]} Kxf7 {[%emt 0:00:02]} 31. Nxd6+ {[%emt 0:00:08]} Ke7 {[%emt 0:00:12]} 32. Nxb7 {[%emt 0:00:19]} Bd4+ {[%emt 0:00:21]} 33. Kf1 {[%emt 0:00:14]} Bb5+ {[%emt 0:00:24]} 34. Ke1 {[%emt 0:00:26]} Bc6 {[%emt 0:01:48] Weighted Error Value: White=0.50/Black=0.20 (precise)} 0-1

[Event "1st Bella Italia International 2022"]
[Site "Lignano"]
[Date "2022.08.18"]
[Round "3.1"]
[White "Sonis, Francesco"]
[Black "Das, Sayantan"]
[Result "1/2-1/2"]
[ECO "A49"]
[WhiteElo "2543"]
[BlackElo "2449"]
[Annotator "TA"]
[PlyCount "115"]
[EventDate "2022.08.18"]
[EventCountry "ITA"]
[SourceTitle "playchess.com"]
[Source "ChessBase"]
[SourceQuality "1"]
[TimeControl "5400+30"]

{[%evp 9,115,25,23,20,17,7,13,5,17,14,10,0,0,0,0,0,0,0,0,0,0,7,0,0,0,0,0,0,0,-2,-18,-25,-15,-22,-18,-18,-20,-22,-24,-34,-42,-38,-24,-38,-49,-35,-42,-66,-25,-72,-64,-70,-68,-69,-66,-73,0,0,0,0,0,0,0,0,0,0,0,-8,7,0,0,0,0,0,0,0,0,0,0,0,0,0,0,0,0,0,0,0,0,0,0,0,0,0,0,0,0,0,0,0,0,0,8,8,8,8,8,8]} 1. Nf3 {[%emt 0:04:49]} Nf6 {[%emt 0:00:25]} 2. g3 {[%emt 0:00:06]} g6 {[%emt 0:00:11]} 3. b3 {[%emt 0:00:06]} Bg7 {[%emt 0:00:23]} 4. Bb2 {[%emt 0:00:02]} d6 {[%emt 0:00:43]} 5. d4 {[%emt 0:00:07]} b5 {[%emt 0:00:27]} 6. Bg2 {[%emt 0:01:30][%cal Of3e5] A49: 1 d4 Nf6 2 Nf3 g6 3 g3: Anti-King's Indian systems.} Bb7 {[%emt 0:00:08]} 7. O-O {[%emt 0:00:09]} O-O {[%emt 0:00:25]} 8. Qd3 {[%emt 0:02:30]} a6 {[%emt 0:03:18]} 9. Nbd2 {[%emt 0:01:54]} Nbd7 {[%emt 0:03:15]} 10. e4 {[%emt 0:05:21] [#]} e5 $146 {[%emt 0:07:59]} ({Predecessor:} 10... c5 11. d5 c4 12. Qe2 Nc5 13. b4 Na4 14. Bd4 e5 15. dxe6 fxe6 16. Rad1 e5 {0-1 (28) Matamoros Franco,C (2486)-Khanin,S (2521) Chess.com INT 2021}) 11. dxe5 {[%emt 0:05:20]} Ng4 {[%emt 0:01:01]} 12. Qe2 {[%emt 0:00:43]} Ngxe5 {[%emt 0:01:40]} 13. Nxe5 {[%emt 0:00:13]} Bxe5 {[%emt 0:06:44]} 14. Bxe5 {[%emt 0:00:42]} dxe5 {[%emt 0:00:08]} 15. a4 {[%emt 0:02:02]} Bc6 {[%emt 0:10:08]} 16. Rfd1 {[%emt 0:07:01]} Qe7 {[%emt 0:05:31]} 17. axb5 {[%emt 0:08:00]} axb5 {[%emt 0:00:10]} 18. Qe3 {[%emt 0:00:46]} Kg7 {[%emt 0:11:36]} 19. Nf3 {[%emt 0:06:30]} b4 {[%emt 0:04:11]} 20. Nd2 {[%emt 0:05:33]} Nc5 {[%emt 0:03:24]} 21. Nc4 {[%emt 0:00:45]} Rfd8 {[%emt 0:10:40]} 22. Qe1 {[%emt 0:02:48]} Rxd1 {[%emt 0:03:17]} 23. Rxd1 {[%emt 0:01:23]} Rb8 {[%emt 0:00:17]} 24. f3 {[%emt 0:05:07]} Ne6 {[%emt 0:02:10]} 25. Qf2 {[%emt 0:00:37]} f6 {[%emt 0:00:52]} 26. f4 {[%emt 0:01:16]} exf4 {[%emt 0:05:29]} 27. gxf4 {[%emt 0:00:06]} Rd8 {[%emt 0:00:04]} 28. Re1 {[%emt 0:00:51]} Qc5 {[%emt 0:01:51]} 29. Ne3 {[%emt 0:09:46] [#]} (29. f5 $11 {deserves consideration.} Qxf2+ 30. Kxf2) 29... Rd4 $1 $17 {[%emt 0:11:27]} 30. f5 {[%emt 0:04:02]} Ng5 {[%emt 0:00:15]} 31. fxg6 {[%emt 0:00:05]} hxg6 {[%emt 0:01:41]} 32. Rf1 {[%emt 0:02:58]} Bxe4 {[%emt 0:03:22]} (32... Rxe4 $17 {Hoping for ...Qe5.} 33. Qxf6+ Kh7) 33. Qxf6+ $11 {[%emt 0:01:33] The position is equal.} Kh7 {[%emt 0:00:03]} 34. Kh1 {[%emt 0:03:59] Strongly threatening Rg1.} Bxg2+ {[%emt 0:00:52]} 35. Nxg2 {[%emt 0:00:03]} Re4 {[%emt 0:02:32]} 36. Rd1 {[%emt 0:04:34] Threatening mate with Rd7+.} (36. Nf4 {[#]} Rxf4 $1 {[%mdl 512]} 37. Rxf4 Qd5+ 38. Kg1 Nh3+ 39. Kf1 Qh1+ 40. Ke2 Qxh2+ 41. Ke3 Qxf4+ 42. Qxf4 Nxf4 43. Kxf4 Kh6 $19) 36... Qe7 {[%emt 0:01:07] Inhibits Rd7.} 37. Qxe7+ {[%emt 0:02:43]} Rxe7 {[%emt 0:00:01][%mdl 4096] Endgame KRN-KRN} 38. Nf4 {[%emt 0:01:03] Inhibits Re2.} Ne4 {[%emt 0:00:46] aiming for ...Nf2+.} 39. Kg2 {[%emt 0:00:12] Prevents Nf2.} Nc3 {[%emt 0:00:37]} 40. Rd2 {[%emt 0:00:05]} g5 {[%emt 0:00:24]} 41. Nd3 {[%emt 0:00:06]} Re4 {[%emt 0:00:06]} 42. Nf2 {[%emt 0:00:23]} Re7 {[%emt 0:00:32]} 43. Kf3 {[%emt 0:02:05]} Kg6 {[%emt 0:00:24]} 44. Rd4 {[%emt 0:00:32]} c5 {[%emt 0:00:41]} 45. Rc4 {[%emt 0:00:05]} Rf7+ {[%emt 0:00:37]} 46. Kg2 {[%emt 0:00:18]} Rf5 {[%emt 0:00:26]} 47. Nd3 {[%emt 0:00:44]} Nd1 {[%emt 0:00:32] Threatens to win with ...Ne3+.} 48. Re4 {[%emt 0:00:25] Prevents Ne3+.} Nc3 {[%emt 0:00:10]} 49. Re6+ {[%emt 0:00:33]} Kf7 {[%emt 0:01:58]} 50. Re3 {[%emt 0:00:43]} Nb5 {[%emt 0:00:00]} 51. Rf3 {[%emt 0:00:34]} Rxf3 {[%emt 0:00:00]} 52. Kxf3 {[%emt 0:00:07] KN-KN} Nd4+ {[%emt 0:00:11]} 53. Ke4 {[%emt 0:00:34][%cal Od3b4]} Nxc2 {[%emt 0:00:06]} 54. Nxc5 {[%emt 0:00:04]} Kg6 {[%emt 0:00:17]} 55. Kd3 {[%emt 0:00:39]} Na1 {[%emt 0:00:45]} 56. Kc4 {[%emt 0:00:07]} Kh5 {[%emt 0:00:16]} 57. Kxb4 {[%emt 0:00:26]} Kg4 {[%emt 0:00:14]} 58. Kc3 {[%emt 0:00:05] Weighted Error Value: White=0.03 (flawless) /Black=0.03 (flawless)} 1/2-1/2

[Event "1st Bella Italia International 2022"]
[Site "Lignano"]
[Date "2022.08.18"]
[Round "3.2"]
[White "Zeller, Frank"]
[Black "Visakh N R"]
[Result "1/2-1/2"]
[ECO "C95"]
[WhiteElo "2356"]
[BlackElo "2503"]
[Annotator "TA"]
[PlyCount "50"]
[EventDate "2022.08.18"]
[EventCountry "ITA"]
[SourceTitle "playchess.com"]
[Source "ChessBase"]
[SourceQuality "1"]
[TimeControl "5400+30"]

{[%evp 32,50,22,18,25,-29,29,20,29,15,12,14,126,109,125,127,129,134,120,112,142]} 1. e4 {[%emt 0:00:37]} e5 {[%emt 0:02:41]} 2. Nf3 {[%emt 0:00:26]} Nc6 {[%emt 0:00:09]} 3. Bb5 {[%emt 0:01:02][%cal Bf1b5,Bb5a4,Ba4b3][%mdl 32]} a6 {[%emt 0:00:02]} 4. Ba4 {[%emt 0:00:21]} Nf6 {[%emt 0:00:03]} 5. O-O {[%emt 0:00:32]} Be7 {[%emt 0:00:02]} 6. Re1 {[%emt 0:00:17]} b5 {[%emt 0:00:27]} 7. Bb3 {[%emt 0:00:02]} d6 {[%emt 0:00:05]} 8. c3 {[%emt 0:00:07]} O-O {[%emt 0:00:04]} 9. h3 {[%emt 0:00:09]} Nb8 {[%emt 0:05:34]} 10. d4 {[%emt 0:00:15]} Nbd7 {[%emt 0:00:03]} 11. Nbd2 {[%emt 0:00:43][%cal Bb1d2,Bd2f1,Bf1g3][%mdl 32]} Bb7 {[%emt 0:00:03]} 12. Bc2 {[%emt 0:01:32]} Re8 {[%emt 0:00:05]} 13. Nf1 {[%emt 0:00:25]} Bf8 {[%emt 0:00:02]} 14. Ng3 {[%emt 0:00:13]} g6 {[%emt 0:00:03]} 15. Bg5 {[%emt 0:03:21]} h6 {[%emt 0:01:34]} 16. Bd2 {[%emt 0:00:17]} Bg7 {[%emt 0:02:10]} 17. Qc1 {[%emt 0:01:32]} Kh7 {[%emt 0:00:03] C95: Closed Ruy Lopez: Breyer Variation with 10 d4.} 18. h4 {[%emt 0:04:00]} (18. dxe5 $142 dxe5 19. c4) 18... d5 {[%emt 0:03:41]} (18... exd4 $142 $1 19. cxd4 c5) 19. exd5 {[%emt 0:29:36]} exd4 {[%emt 0:02:57] [#] The position is equal.} 20. h5 $146 {[%emt 0:10:29]} ({Don't play} 20. Nxd4 Ne5 $11) ({Predecessor:} 20. Nxd4 Ne5 21. Ne6 Qxd5 22. Nf4 Qc6 23. h5 Rad8 24. hxg6+ fxg6 25. Qb1 Rxd2 26. Bxg6+ {0-1 (38) Smirin,I (2530)-Beliavsky,A (2620) Odessa 1989}) 20... Rxe1+ {[%emt 0:09:32]} 21. Qxe1 {[%emt 0:10:21]} Nf8 {[%emt 0:02:52]} (21... d3 $1 $11 {remains equal.} 22. Bxd3 Bxd5) 22. cxd4 $16 {[%emt 0:01:06]} Bxd5 {[%emt 0:09:52]} 23. Ne5 {[%emt 0:00:28]} N6d7 {[%emt 0:02:57]} 24. hxg6+ {[%emt 0:07:31]} fxg6 {[%emt 0:00:09]} 25. Nh5 {[%emt 0:01:03] White is more active.} Nxe5 {[%emt 0:06:48] Weighted Error Value: White=0.11 (very precise) /Black=0.39} 1/2-1/2

[Event "1st Bella Italia International 2022"]
[Site "Lignano"]
[Date "2022.08.18"]
[Round "3.3"]
[White "Ghosh, Diptayan"]
[Black "Lumachi, Gabriele"]
[Result "1/2-1/2"]
[ECO "E06"]
[WhiteElo "2538"]
[BlackElo "2355"]
[Annotator "TA"]
[PlyCount "33"]
[EventDate "2022.08.18"]
[EventCountry "ITA"]
[SourceTitle "playchess.com"]
[Source "ChessBase"]
[SourceQuality "1"]
[TimeControl "5400+30"]

{[%evp 18,33,9,4,21,7,9,0,0,-1,0,-18,0,0,0,0,0,0]} 1. Nf3 {[%emt 0:00:22]} d5 {[%emt 0:01:13]} 2. c4 {[%emt 0:00:30]} e6 {[%emt 0:00:57]} 3. g3 {[%emt 0:00:44]} Nf6 {[%emt 0:00:14]} 4. Bg2 {[%emt 0:00:04]} Be7 {[%emt 0:00:05]} 5. d4 {[%emt 0:00:57]} O-O {[%emt 0:00:12]} 6. Nc3 {[%emt 0:02:30]} dxc4 {[%emt 0:00:15]} 7. Ne5 {[%emt 0:00:05]} c5 {[%emt 0:00:08]} 8. dxc5 {[%emt 0:00:03]} Qxd1+ {[%emt 0:00:10]} 9. Nxd1 {[%emt 0:00:04]} Bxc5 {[%emt 0:01:39]} 10. O-O {[%emt 0:03:01] The position is equal.} Nd5 {[%emt 0:00:25] E06: Closed Catalan: Early deviations.} 11. Nxc4 {[%emt 0:05:18]} Nc6 {[%emt 0:00:07]} 12. Bd2 {[%emt 0:18:24]} Rd8 {[%emt 0:02:15]} 13. Rc1 {[%emt 0:03:25] [#]} b6 $146 {[%emt 0:07:06]} ({Predecessor:} 13... Bd7 14. Na5 Nxa5 15. Rxc5 b6 16. Rc1 Bb5 17. Nc3 Nxc3 18. Bxc3 Rac8 19. Rfe1 f6 {1-0 (56) Kozul,Z (2595)-Nielsen,A (2213) Nova Gorica 2020}) 14. Be3 {[%emt 0:15:27]} Ba6 {[%emt 0:08:35]} 15. Bxc5 {[%emt 0:01:43]} bxc5 {[%emt 0:00:11]} 16. Re1 {[%emt 0:02:07]} Rab8 {[%emt 0:01:46]} 17. Nce3 {[%emt 0:11:43] An uneventful encounter.  Weighted Error Value: White=0.04 (flawless) /Black=0.05 (flawless)} 1/2-1/2

[Event "1st Bella Italia International 2022"]
[Site "Lignano"]
[Date "2022.08.18"]
[Round "3.4"]
[White "Priyanka Nutakki"]
[Black "Karthik Venkataraman"]
[Result "1/2-1/2"]
[ECO "D90"]
[WhiteElo "2308"]
[BlackElo "2483"]
[Annotator "TA"]
[PlyCount "81"]
[EventDate "2022.08.18"]
[EventCountry "ITA"]
[SourceTitle "playchess.com"]
[Source "ChessBase"]
[SourceQuality "1"]
[TimeControl "5400+30"]

{[%evp 15,81,8,0,8,9,7,12,6,6,5,8,12,11,2,21,-7,-6,-16,0,-2,0,0,0,0,0,-6,0,0,0,0,-6,-8,0,0,3,0,0,0,0,0,0,0,0,-83,-2,-8,1,1,6,8,1,-87,0,-114,-126,-116,0,0,0,0,0,0,0,0,0,0,8,-29980]} 1. d4 {[%emt 0:05:12]} Nf6 {[%emt 0:02:46]} 2. c4 {[%emt 0:00:08]} g6 {[%emt 0:01:12]} 3. Nc3 {[%emt 0:00:10]} d5 {[%emt 0:00:25]} 4. cxd5 {[%emt 0:03:42]} Nxd5 {[%emt 0:00:06]} 5. Bd2 {[%emt 0:00:09]} Bg7 {[%emt 0:00:09]} 6. e4 {[%emt 0:00:06]} Nxc3 {[%emt 0:00:04]} 7. Bxc3 {[%emt 0:00:04]} O-O {[%emt 0:00:06]} 8. Nf3 {[%emt 0:05:26]} Bg4 {[%emt 0:00:42]} 9. Be2 {[%emt 0:00:22] D90: Grünfeld: 4 Nf3 Bg7 sidelines.} e6 {[%emt 0:02:53][%cal Oc7c5]} 10. O-O {[%emt 0:04:42]} c5 {[%emt 0:05:24]} 11. d5 {[%emt 0:02:10]} exd5 {[%emt 0:00:17]} 12. exd5 {[%emt 0:01:22]} Qd6 {[%emt 0:08:48]} 13. h3 {[%emt 0:12:12]} Bxf3 {[%emt 0:01:26]} 14. Bxf3 {[%emt 0:00:03]} ({But not} 14. gxf3 Nd7 $15) 14... Nd7 {[%emt 0:00:32] [#]} (14... Re8 {is interesting.} 15. Qb3 b6 16. Qa4 Rd8) 15. Rc1 $146 {[%emt 0:02:06]} ({Predecessor:} 15. Qd2 Rad8 16. Rfd1 Rfe8 17. Rac1 Bxc3 18. Qxc3 b6 19. a3 Re7 20. b4 cxb4 21. axb4 {½-½ (37) Klukin,K (2245)-Petrushev,N (2221) Murmansk 2016}) 15... Bxc3 {[%emt 0:03:15]} 16. Rxc3 {[%emt 0:02:19]} Rfd8 {[%emt 0:01:33]} 17. g3 {[%emt 0:03:34]} a6 {[%emt 0:00:53]} 18. Re1 {[%emt 0:02:36]} Re8 {[%emt 0:00:13]} 19. Rce3 {[%emt 0:00:50]} Rxe3 {[%emt 0:00:18]} 20. Rxe3 {[%emt 0:00:02]} Rd8 {[%emt 0:00:22]} 21. Qe2 {[%emt 0:03:07]} Kf8 {[%emt 0:00:37]} 22. Bg2 {[%emt 0:02:55]} Nf6 {[%emt 0:03:19]} 23. Re5 {[%emt 0:01:03]} Nd7 {[%emt 0:00:16]} 24. Re3 {[%emt 0:00:20]} h5 {[%emt 0:04:07]} 25. b3 {[%emt 0:11:20]} Nf6 {[%emt 0:01:13]} 26. Re5 {[%emt 0:00:50]} Nd7 {[%emt 0:00:19]} 27. Re3 {[%emt 0:00:12]} Nf6 {[%emt 0:00:08]} 28. Re5 {[%emt 0:06:01]} b5 {[%emt 0:00:05]} 29. f4 {[%emt 0:03:04]} (29. Qb2 $11 Kg8 30. Re1) 29... Nd7 {[%emt 0:01:52]} (29... Rc8 $17 {aiming for ...c4.} 30. Qd2 c4 31. bxc4 Rxc4) 30. Re3 $11 {[%emt 0:03:34]} Rc8 {[%emt 0:04:13]} 31. f5 {[%emt 0:00:50]} c4 {[%emt 0:11:59]} 32. fxg6 {[%emt 0:02:56]} Qxg6 {[%emt 0:00:19]} 33. Be4 {[%emt 0:03:29] [#]} (33. bxc4 $11 {keeps the balance.} Rxc4 34. Qb2) 33... Qf6 {[%emt 0:01:17]} (33... Qb6 $1 $17 {And now ...cxb3 would win.} 34. Qf2 Re8) 34. Rf3 {[%emt 0:08:53]} (34. Qxh5 $11 cxb3 35. Rf3 Qd4+ 36. Kg2) 34... Qd4+ $17 {[%emt 0:00:51]} 35. Kg2 {[%emt 0:00:17]} Re8 {[%emt 0:01:16]} (35... c3 $17 {Threatens to win with ...Re8.} 36. Bf5 Qd2) 36. Rxf7+ $1 $11 {[%emt 0:00:44] The position is equal.} Kxf7 {[%emt 0:01:55]} 37. Bg6+ {[%emt 0:00:01][%mdl 64] [#] Discovered Attack, Deflection, Double Attack} Kf6 {[%emt 0:00:23]} 38. Bxe8 {[%emt 0:02:13] Chess con chili.} Qxd5+ {[%emt 0:00:05]} 39. Qf3+ {[%emt 0:01:28]} Qxf3+ {[%emt 0:00:08]} 40. Kxf3 {[%emt 0:00:02]} cxb3 {[%emt 0:08:33]} 41. Ke4 $2 {[%emt 0:00:00][%mdl 40960] Weighted Error Value: White=0.17 (very precise) /Black=0.12 (very precise) . An unexpected result.} (41. axb3 $11 Nc5 42. b4) 1/2-1/2

[Event "1st Bella Italia International 2022"]
[Site "Lignano"]
[Date "2022.08.18"]
[Round "3.5"]
[White "Aaron, Deepak"]
[Black "Jonkman, Harmen"]
[Result "1/2-1/2"]
[ECO "A22"]
[WhiteElo "2221"]
[BlackElo "2373"]
[Annotator "TA"]
[PlyCount "45"]
[EventDate "2022.08.18"]
[EventCountry "ITA"]
[SourceTitle "playchess.com"]
[Source "ChessBase"]
[SourceQuality "1"]
[TimeControl "5400+30"]

{[%evp 9,45,0,1,2,5,0,16,17,8,18,12,12,15,18,18,24,29,20,102,102,113,77,80,0,102,100,103,97,118,112,112,27,44,59,72,70,77,-37]} 1. c4 {[%emt 0:02:09]} e5 {[%emt 0:01:21]} 2. Nc3 {[%emt 0:00:10]} Nf6 {[%emt 0:00:31]} 3. e3 {[%emt 0:00:15]} c6 {[%emt 0:00:43]} 4. d4 {[%emt 0:02:13]} e4 {[%emt 0:03:21]} 5. Nge2 {[%emt 0:06:32]} d5 {[%emt 0:01:43]} 6. cxd5 {[%emt 0:00:42] A22: English Opening: 1...e5 2 Nc3 Nf6.} cxd5 {[%emt 0:00:07]} 7. Qb3 {[%emt 0:00:12]} Na6 {[%emt 0:01:24]} 8. Nf4 {[%emt 0:01:04][%cal Rf4d5] The position is equal.} Nc7 {[%emt 0:00:19]} 9. Bb5+ {[%emt 0:00:39]} Nxb5 {[%emt 0:05:24]} 10. Qxb5+ {[%emt 0:00:22]} Bd7 {[%emt 0:00:07]} 11. Qxb7 {[%emt 0:00:44] [#]} Rb8 $146 {[%emt 0:00:15]} ({Predecessor:} 11... Bd6 12. Nfxd5 Nxd5 13. Qxd5 Be7 14. Qxe4 O-O 15. O-O {1-0 (15) Hortion,D (1802)-Heurtebize,C (2086) Avoine 2013}) 12. Qxa7 {[%emt 0:19:28]} Bb4 {[%emt 0:12:08]} 13. Bd2 {[%emt 0:03:39]} Qc8 {[%emt 0:16:15]} (13... Ra8 $11 {keeps the balance.} 14. Qb7 Rb8) 14. a3 $16 {[%emt 0:09:02]} (14. Nfxd5 $2 Nxd5 15. Nxe4 (15. Nxd5 $2 Bxd2+ 16. Kf1 Qc4+ 17. Kg1 Rc8 $19) 15... Bxd2+ 16. Nxd2 Rxb2 $17) ({Don't go for} 14. Ncxd5 $2 Bxd2+ 15. Kf1 (15. Kxd2 $2 Rxb2+ 16. Ke1 Qc2 $19) 15... Nxd5 16. Nxd5 Qc4+ 17. Kg1 Rc8 18. Qxd7+ Kxd7 $19) 14... Ra8 {[%emt 0:00:43]} 15. Qb6 {[%emt 0:04:50]} Rb8 {[%emt 0:02:30]} 16. Qa7 {[%emt 0:01:12]} Ra8 $1 {[%emt 0:03:59] [#]} 17. axb4 $1 {[%emt 0:45:47]} Rxa7 18. Rxa7 {[%emt 0:00:30]} Qb8 19. Ra5 {[%emt 0:00:30]} O-O {[%emt 0:49:10]} 20. b5 (20. Ncxd5 $16 Nxd5 21. Rxd5 (21. Nxd5 Bb5 $16)) 20... g5 {[%emt 0:00:30]} 21. Nfxd5 {[%emt 0:01:00]} Nxd5 {[%emt 0:00:30]} 22. Nxd5 {[#] Hoping for Nf6+.} Bxb5 {[%emt 0:00:30]} 23. Nc3 {[%emt 0:01:00] Weighted Error Value: White=0.19 (very precise) /Black=0.12 (very precise)} ({Better is} 23. h4 $16 g4 24. Bc3) 1/2-1/2

[Event "1st Bella Italia International 2022"]
[Site "Lignano"]
[Date "2022.08.18"]
[Round "3.6"]
[White "Della Pietra, Andrea"]
[Black "Loiacono, Leonardo"]
[Result "0-1"]
[ECO "D31"]
[WhiteElo "2172"]
[BlackElo "2291"]
[Annotator "NA RC"]
[PlyCount "82"]
[EventDate "2022.08.18"]
[EventCountry "ITA"]
[SourceTitle "playchess.com"]
[Source "ChessBase"]
[SourceQuality "1"]
[TimeControl "5400+30"]

1. d4 {[%emt 0:00:07]} d5 {[%emt 0:09:10]} 2. c4 {[%emt 0:00:18]} e6 {[%emt 0:00:34]} 3. Nc3 {[%emt 0:00:06]} Be7 {[%emt 0:00:03]} 4. cxd5 {[%emt 0:01:13]} exd5 {[%emt 0:00:05]} 5. Bf4 {[%emt 0:00:14]} c6 {[%emt 0:00:04]} 6. e3 {[%emt 0:00:35]} Bf5 {[%emt 0:00:08]} 7. g4 {[%emt 0:02:53]} Be6 {[%emt 0:00:04]} 8. h3 {[%emt 0:03:47]} Nd7 {[%emt 0:00:26]} 9. Bg2 {[%emt 0:03:41]} h5 {[%emt 0:01:00]} 10. gxh5 {[%emt 0:37:24]} Ndf6 {[%emt 0:00:06]} 11. Nge2 {[%emt 0:09:52]} Nxh5 {[%emt 0:00:21]} 12. Be5 {[%emt 0:01:07]} Ngf6 {[%emt 0:02:35]} 13. Qc2 {[%emt 0:01:12]} Nd7 {[%emt 0:01:04]} 14. Bh2 {[%emt 0:00:53]} Nb6 {[%emt 0:00:53]} 15. O-O-O {[%emt 0:05:54]} Qd7 {[%emt 0:00:29]} 16. Nf4 {[%emt 0:11:11]} Nxf4 {[%emt 0:00:08]} 17. Bxf4 {[%emt 0:00:05]} Bd6 {[%emt 0:02:15]} 18. Bxd6 {[%emt 0:00:28]} Qxd6 {[%emt 0:00:06]} 19. Ne2 {[%emt 0:01:11]} g6 {[%emt 0:03:03]} 20. f3 {[%emt 0:04:00]} O-O-O {[%emt 0:01:54]} 21. b3 {[%emt 0:04:53]} Rh4 {[%emt 0:02:17]} 22. Kb2 {[%emt 0:04:20]} Rdh8 {[%emt 0:00:18]} 23. Ng1 {[%emt 0:00:44]} Qb4 {[%emt 0:02:30]} 24. Ka1 {[%emt 0:01:10]} g5 {[%emt 0:01:03]} 25. f4 {[%emt 0:03:08]} gxf4 {[%emt 0:01:58]} 26. Nf3 {[%emt 0:00:34]} R4h5 {[%emt 0:00:06]} 27. exf4 {[%emt 0:00:24]} Bf5 {[%emt 0:00:22]} 28. Qd2 {[%emt 0:00:08]} Qxd2 {[%emt 0:00:39]} 29. Rxd2 {[%emt 0:00:09]} f6 {[%emt 0:00:18]} 30. h4 {[%emt 0:00:35]} Be4 {[%emt 0:00:43]} 31. Re2 {[%emt 0:01:38]} Kd8 {[%emt 0:01:32]} 32. Ne1 {[%emt 0:00:16]} f5 {[%emt 0:00:08]} 33. Bxe4 {[%emt 0:00:20]} dxe4 {[%emt 0:00:05]} 34. Ng2 {[%emt 0:00:13]} Nd5 {[%emt 0:00:06]} 35. Kb2 {[%emt 0:00:42]} Rg8 {[%emt 0:00:11]} 36. Rh3 {[%emt 0:01:20]} Ke7 {[%emt 0:00:44]} 37. b4 {[%emt 0:01:10]} Rh7 {[%emt 0:00:40]} 38. h5 {[%emt 0:00:48]} Rxg2 {[%emt 0:00:37]} 39. Rxg2 {[%emt 0:00:05]} Nxf4 {[%emt 0:00:07]} 40. Rgg3 {[%emt 0:00:19]} Nxh3 {[%emt 0:00:06]} 41. Rxh3 {[%emt 0:00:02]} Kf6 {[%emt 0:00:11]} 0-1